bitfinex/quotes_ETHUSD_20260106
["timestamp","ask_amount","ask_price","bid_price","bid_amount"]
[1767723597648,0.812,3211.4,3210.9,0.002]
[1767723597856,3.11400367,3211.3,3210.9,0.002]
[1767723598164,3.11419762,3211.1,3210.9,0.002]
[1767723598353,0.78939016,3211.0,3210.9,0.002]
[1767723599163,3.11404732,3211.3,3210.9,0.002]
[1767723599458,6.22812078,3211.3,3210.9,0.002]
[1767723599761,1.665579,3211.1,3210.9,0.002]
[1767723600145,0.812,3211.4,3210.9,0.002]
[1767723600537,1.665579,3212.2,3210.9,1.66594023]
[1767723600738,0.812,3212.1,3211.1,1.66394023]
[1767723601478,0.812,3212.3,3211.3,1.58704061]
[1767723601766,5.81314305,3212.3,3211.0,0.16679402]
[1767723601953,5.81314305,3212.3,3211.1,1.58704061]
[1767723602143,6.2264562,3212.1,3211.2,0.17538346]
[1767723602346,3.1132281,3212.1,3211.2,3.11408615]
[1767723602557,6.2264562,3212.1,3211.1,4.70120476]
[1767723602741,6.2264562,3212.1,3211.2,3.11403585]
[1767723603248,6.2264562,3212.1,3211.1,4.70118786]
[1767723603436,0.812,3212.2,3211.2,7.81524189]
[1767723603634,0.812,3212.2,3211.3,1.58704061]
[1767723603866,0.001,3211.8,3211.3,1.58704061]
[1767723604685,0.001,3211.8,3211.4,3.1139067]
[1767723604902,0.001,3211.8,3211.2,0.002]
[1767723605871,0.001,3211.8,3211.3,7.81502508]
[1767723606072,1.65600802,3213.1,3211.5,1.58704061]
[1767723606292,3.92445292,3212.9,3211.5,1.58704061]
[1767723606699,8.69291386,3212.9,3211.5,1.58704061]
[1767723606903,8.69291386,3212.9,3211.6,3.11371279]
[1767723607194,8.69291386,3212.9,3211.6,6.22742558]
[1767723607398,0.86939139,3212.8,3211.7,0.78144662]
[1767723608016,2.52539941,3212.8,3211.7,0.78144662]
[1767723608219,1.65600802,3212.7,3211.2,4.70305733]
[1767723608420,1.65600802,3212.7,3211.2,0.002]
[1767723608910,1.65600802,3212.5,3211.2,0.002]
[1767723609109,1.65600802,3212.3,3211.2,0.002]
[1767723610731,0.812,3212.4,3211.2,0.002]
[1767723610732,10.99540156,3212.2,3211.2,0.002]
[1767723610931,2.75554818,3212.1,3211.2,0.002]
[1767723611270,2.75554818,3212.1,3210.9,3.1163399]
[1767723611271,1.65600802,3212.0,3210.9,0.002]
[1767723611456,2.46800802,3211.9,3210.9,0.002]
[1767723611865,1.65600802,3211.8,3210.9,0.002]
[1767723612754,1.65600802,3211.6,3210.9,0.002]
[1767723612954,1.09968555,3211.5,3210.9,1.58904061]
[1767723613154,2.46800802,3211.6,3210.9,0.002]
[1767723613736,1.65600802,3211.5,3210.9,0.002]
[1767723614349,0.812,3211.6,3210.9,0.002]
[1767723614860,6.22761948,3211.5,3210.9,0.002]
[1767723616154,3.11380974,3211.5,3210.9,0.002]
[1767723616458,0.70395518,3211.4,3210.9,0.002]
[1767723616658,1.65600802,3211.3,3210.9,0.002]
[1767723616865,1.65600802,3211.3,3211.2,0.002]
[1767723617068,3.81794564,3211.4,3210.9,0.002]
[1767723617285,1.65600802,3212.0,3210.9,0.002]
[1767723617467,0.812,3211.9,3210.9,0.002]
[1767723617778,0.812,3211.9,3210.9,1.58904061]
[1767723619777,6.22703778,3211.8,3210.9,1.58904061]
[1767723619975,0.70390378,3211.7,3210.9,1.58904061]
[1767723621673,6.22742558,3211.6,3210.9,0.002]
[1767723621877,3.11371279,3211.6,3210.9,1.58904061]
[1767723622075,0.812,3211.9,3210.9,1.58904061]
[1767723622076,1.09954016,3212.1,3211.1,1.58603958]
[1767723622275,3.92532503,3212.0,3211.1,1.58603958]
[1767723622696,7.03865006,3212.0,3211.1,1.58603958]
[1767723624368,3.11293736,3212.4,3211.2,1.58704061]
[1767723624569,0.812,3212.3,3211.2,1.58704061]
[1767723624789,0.39249374,3212.2,3211.2,1.58704061]
[1767723625193,2.04850176,3212.2,3210.9,1.58904061]
[1767723625370,2.04850176,3212.2,3210.9,0.002]
[1767723625574,1.65600802,3212.0,3210.9,0.002]
[1767723626178,6.22684392,3211.9,3210.9,0.002]
[1767723626391,0.812,3211.8,3210.9,0.002]
[1767723626998,0.812,3211.8,3210.9,1.58904061]
[1767723627181,0.28605018,3212.1,3210.9,1.58904061]
[1767723627366,0.812,3212.0,3211.1,1.58704061]
[1767723627971,3.11293736,3212.4,3211.1,1.58704061]
[1767723628196,0.812,3212.1,3211.3,1.58704061]
[1767723628772,3.92524703,3212.1,3211.3,1.58704061]
[1767723629079,0.001,3211.7,3211.3,1.58704061]
[1767723629283,0.812,3212.1,3211.3,1.58704061]
[1767723629896,3.92522997,3212.1,3211.3,1.58704061]
[1767723630702,0.812,3212.1,3211.4,3.1139067]
[1767723630919,0.812,3212.1,3211.5,1.58704061]
[1767723631210,1.65600802,3213.3,3212.1,1.58704061]
[1767723631380,3.92445292,3212.9,3212.1,1.58704061]
[1767723632809,0.001,3213.0,3212.1,4.70022416]
[1767723632984,0.812,3212.9,3212.2,1.48453643]
[1767723634013,0.001,3213.0,3212.2,1.48453643]
[1767723634317,0.001,3213.4,3212.6,1.48453643]
[1767723635128,0.001,3213.4,3212.8,1.48453643]
[1767723637131,0.001,3213.4,3212.9,1.48453643]
[1767723637420,1.44919198,3214.2,3212.9,1.48453643]
[1767723637421,0.812,3213.9,3212.9,1.48453643]
[1767723637993,1.44919198,3213.8,3212.6,3.11273811]
[1767723638196,0.2261192,3213.7,3212.7,3.11263616]
[1767723638430,0.2261192,3213.7,3212.5,1.48453643]
[1767723638639,0.2261192,3213.7,3212.5,4.59733447]
[1767723638843,1.67531118,3213.7,3212.6,3.11274162]
[1767723639040,1.44919198,3214.1,3212.9,1.48453643]
[1767723639197,0.812,3214.0,3212.9,1.48453643]
[1767723639998,7.03477534,3214.0,3212.9,1.48453643]
[1767723640236,3.92338767,3214.0,3213.0,1.48453643]
[1767723640421,3.92338767,3214.0,3213.2,0.002]
[1767723640725,0.001,3213.6,3213.2,1.48653643]
[1767723641301,6.41,3214.3,3213.2,1.48653643]
[1767723641517,3.11119407,3214.2,3213.2,1.48653643]
[1767723641717,3.11100049,3214.4,3213.2,1.48653643]
[1767723642336,6.22200098,3214.4,3213.4,1.48453643]
[1767723642643,7.67119296,3214.4,3213.4,1.48453643]
[1767723642844,0.8483193,3214.3,3213.4,1.48453643]
[1767723643941,0.8483193,3214.3,3213.2,3.92313069]
[1767723643942,1.44919198,3214.2,3213.2,0.002]
[1767723644126,1.44919198,3214.2,3211.6,0.002]
[1767723644343,6.22413094,3213.3,3211.7,3.11361584]
[1767723644503,3.11206547,3213.3,3211.8,1.51567161]
[1767723644702,6.22392719,3213.5,3211.8,1.51567161]
[1767723646153,6.22392719,3213.5,3212.0,1.48453643]
[1767723646351,3.11138767,3214.0,3212.0,1.48453643]
[1767723646564,3.11138767,3214.0,3212.2,1.48453643]
[1767723646773,3.11138767,3214.0,3212.1,1.39382243]
[1767723646774,1.44919198,3213.9,3212.4,1.48453643]
[1767723647154,1.44919198,3213.9,3212.5,2.29353643]
[1767723647481,0.76719673,3213.8,3212.6,0.22935364]
[1767723647682,0.76719673,3213.8,3212.6,1.71389007]
[1767723647878,6.22335624,3213.7,3212.6,1.48453643]
[1767723648088,7.67254822,3213.7,3212.6,4.59727748]
[1767723649089,1.44919198,3213.6,3212.5,3.11281386]
[1767723649274,1.44919198,3213.6,3212.4,3.11285744]
[1767723649586,2.26119198,3213.6,3212.5,3.11283937]
[1767723649770,0.84845482,3213.5,3212.5,3.11283937]
[1767723650495,6.22393726,3213.4,3212.4,3.11293736]
[1767723650679,3.11196863,3213.4,3212.4,3.11293736]
[1767723651282,1.44919198,3213.3,3212.3,3.11302585]
[1767723651486,0.84845482,3213.5,3212.4,1.5156658]
[1767723651675,3.20498328,3214.1,3212.4,1.48453643]
[1767723651676,3.92383585,3213.6,3212.4,1.48453643]
[1767723652075,7.0356717,3213.6,3212.4,1.48453643]
[1767723652571,7.0356717,3213.6,3212.6,1.48453643]
[1767723653284,7.0356717,3213.6,3212.9,0.002]
[1767723653488,7.0366717,3213.6,3212.6,1.48453643]
[1767723653690,1.01483965,3213.5,3212.6,1.48453643]
[1767723655806,6.22393726,3213.4,3212.6,1.48453643]
[1767723655975,3.11196863,3213.4,3212.6,1.48453643]
[1767723656389,6.22393726,3213.4,3212.6,1.48453643]
[1767723658301,3.11196863,3213.4,3212.6,4.59725027]
[1767723659898,8.4782977,3213.4,3212.5,0.002]
[1767723661288,1.475601,3213.3,3212.5,0.002]
[1767723661500,0.80516846,3213.4,3212.5,1.45473125]
[1767723661801,3.11164666,3213.8,3212.8,1.45273125]
[1767723662012,3.96272169,3213.8,3212.9,1.45273125]
[1767723662196,7.07436835,3213.8,3212.9,1.45273125]
[1767723662502,3.96272169,3213.8,3212.9,1.45273125]
[1767723662893,7.07436835,3213.8,3212.9,1.45273125]
[1767723663816,1.47684558,3213.7,3212.6,1.36246488]
[1767723664018,7.70039548,3213.6,3212.6,4.47519685]
[1767723664190,1.47684558,3213.5,3212.6,4.47519685]
[1767723664395,1.47684558,3213.5,3212.6,3.11273197]
[1767723664691,6.2235499,3213.6,3212.7,1.36246488]
[1767723664891,7.70039548,3213.6,3212.7,2.20236765]
[1767723665210,4.58862053,3213.6,3212.7,2.20236765]
[1767723665408,0.78863684,3213.7,3212.8,1.36246488]
[1767723665409,3.11169796,3213.7,3212.8,1.36246488]
[1767723665610,3.11131384,3214.1,3212.7,0.83990277]
[1767723665611,7.88684558,3214.4,3213.3,1.36246488]
[1767723665912,3.11109728,3214.3,3213.5,3.11187179]
[1767723666505,6.22219456,3214.3,3213.4,4.47442384]
[1767723666689,3.11109728,3214.3,3213.4,5.81337358]
[1767723667083,6.22219456,3214.3,3213.4,5.81337358]
[1767723668107,3.11109728,3214.3,3213.5,1.36246488]
[1767723668403,6.22207138,3214.4,3213.5,1.36246488]
[1767723668613,6.22207138,3214.4,3213.6,1.36246488]
[1767723669207,6.22207138,3214.4,3213.6,0.809]
[1767723670106,6.22207138,3214.4,3213.5,0.52834238]
[1767723670310,1.47684558,3214.3,3213.3,1.36246488]
[1767723670485,1.47684558,3214.3,3212.9,0.002]
[1767723670681,1.47684558,3214.3,3213.0,3.11228448]
[1767723670895,1.47684558,3214.3,3213.2,1.36246488]
[1767723671098,1.47684558,3214.3,3213.2,4.47457314]
[1767723671385,1.08099526,3214.2,3213.2,4.47457314]
[1767723671699,2.55784084,3214.2,3213.2,4.47462714]
[1767723672311,6.22258174,3214.1,3213.2,1.36246488]
[1767723672611,1.47684558,3214.0,3212.9,1.36446488]
[1767723672820,6.22258174,3214.1,3213.3,1.36246488]
[1767723672821,3.11129087,3214.1,3213.3,1.36246488]
[1767723673025,1.08099526,3214.2,3213.3,1.57961137]
[1767723673187,10.80897609,3214.7,3213.3,1.57961137]
[1767723673393,1.47684558,3214.6,3213.3,1.57961137]
[1767723674407,1.47684558,3214.6,3213.4,1.36246488]
[1767723674408,7.698653,3214.5,3213.4,1.36246488]
[1767723674603,10.80955671,3214.5,3213.4,1.36246488]
[1767723674810,1.08095567,3214.4,3213.4,1.36246488]
[1767723674983,2.55780125,3214.4,3213.4,1.36246488]
[1767723675183,0.812,3214.8,3213.4,1.36246488]
[1767723675390,3.11022642,3215.2,3214.2,1.36246488]
[1767723675790,1.47684558,3215.3,3214.3,1.36246488]
[1767723675987,7.69652464,3215.6,3214.3,1.36246488]
[1767723676330,7.69652464,3215.6,3214.4,1.36246488]
[1767723676615,1.16183085,3215.5,3214.4,1.36246488]
[1767723676985,1.47684558,3215.4,3214.3,0.809]
[1767723677788,0.001,3214.5,3214.3,3.92008886]
[1767723678117,1.47684558,3215.4,3214.3,5.28255374]
[1767723678520,3.11012969,3215.3,3214.3,5.28255374]
[1767723678723,1.47684558,3215.7,3214.4,1.36246488]
[1767723678897,3.10983953,3215.6,3214.4,1.36246488]
[1767723679098,3.10954942,3215.9,3214.4,1.36246488]
[1767723679303,6.21911857,3215.9,3214.4,1.36246488]
[1767723679498,0.85069642,3215.8,3214.6,1.36246488]
[1767723680719,3.10974282,3215.7,3214.7,4.47317505]
[1767723680890,3.10974282,3215.7,3214.8,1.36246488]
[1767723681623,3.9603757,3215.8,3214.8,1.36246488]
[1767723682203,7.07005498,3215.8,3214.8,1.36246488]
[1767723682422,3.9603757,3215.8,3214.9,0.75838852]
[1767723682922,3.9603757,3215.8,3214.9,5.23136942]
[1767723683826,6.21851874,3216.2,3215.0,1.36246488]
[1767723684235,7.69536432,3216.2,3215.0,1.36246488]
[1767723684795,3.1090721,3216.4,3215.2,1.36246488]
[1767723684997,3.10901424,3216.5,3215.4,1.36246488]
[1767723685196,3.10901424,3216.5,3215.5,1.57961137]
[1767723685806,7.69487406,3216.5,3215.5,1.57961137]
[1767723686796,7.69487406,3216.5,3215.5,4.68945106]
[1767723687397,7.69487406,3216.5,3215.6,1.36246488]
[1767723687593,4.58585982,3216.5,3215.6,1.36246488]
[1767723688209,7.69487406,3216.5,3215.6,1.36246488]
[1767723688932,1.47684558,3216.4,3215.3,0.809]
[1767723689230,1.47684558,3216.4,3215.3,1.36246488]
[1767723689528,0.811,3216.4,3215.5,1.36246488]
[1767723689834,0.001,3216.2,3215.2,1.36246488]
[1767723690032,1.47784558,3216.2,3215.1,0.808]
[1767723690705,1.47784558,3216.2,3214.7,0.808]
[1767723690895,1.47684558,3216.0,3214.6,1.36246488]
[1767723691098,1.47684558,3215.8,3214.5,0.808]
[1767723691341,1.47684558,3215.6,3214.5,0.808]
[1767723691548,1.47684558,3215.6,3214.6,7.63910007]
[1767723691845,1.03978456,3215.7,3214.7,1.41749581]
[1767723692004,1.33285025,3215.6,3214.5,3.918879]
[1767723692206,1.33285025,3215.6,3214.5,0.808]
[1767723692506,1.03978456,3215.7,3214.5,3.11088228]
[1767723692507,1.33285025,3215.4,3214.5,3.11088228]
[1767723692710,2.14385025,3215.7,3214.6,3.11079068]
[1767723692916,3.10983953,3215.6,3214.7,4.52817933]
[1767723693508,6.21967906,3215.6,3214.7,4.52817933]
[1767723693830,7.55252931,3215.6,3214.7,4.52817933]
[1767723693999,0.83635293,3215.5,3214.7,4.52817933]
[1767723694204,0.83635293,3215.5,3214.7,1.41749581]
[1767723694404,0.83635293,3215.5,3214.5,3.11087854]
[1767723694606,2.16920318,3215.5,3214.5,3.11087854]
[1767723694802,0.83635293,3215.5,3214.7,6.22139461]
[1767723695007,6.21951874,3216.2,3215.0,1.41749581]
[1767723695609,7.55236899,3216.2,3215.0,1.41749581]
[1767723695931,7.55236899,3216.2,3215.2,1.41749581]
[1767723695932,4.44310962,3216.2,3215.2,1.41749581]
[1767723696113,3.11025937,3216.2,3215.2,1.41749581]
[1767723696313,3.50008147,3216.2,3215.2,1.41749581]
[1767723697029,6.60934084,3216.2,3215.3,3.11012969]
[1767723697234,0.3908221,3216.2,3215.3,6.22025938]
[1767723697414,0.001,3216.2,3215.4,1.41749581]
[1767723697763,0.001,3216.2,3215.5,1.41749581]
[1767723698214,1.33285025,3216.8,3215.5,1.41749581]
[1767723699010,4.44162632,3216.7,3215.6,6.21967906]
[1767723699225,4.44162632,3216.7,3215.7,0.76371749]
[1767723699429,1.33285025,3216.7,3215.7,0.76371749]
[1767723700510,6.2173796,3216.8,3215.8,1.41749581]
[1767723701337,6.21716558,3216.9,3215.9,4.52704523]
[1767723701636,6.21716558,3216.9,3215.9,1.41749581]
[1767723701818,6.21716558,3216.9,3216.0,0.45270957]
[1767723702241,3.10858279,3216.9,3216.1,1.41749581]
[1767723702540,6.21716558,3216.9,3216.1,1.41749581]
[1767723703512,3.10848616,3217.0,3216.1,4.52683648]
[1767723703715,3.10848616,3217.0,3216.1,1.41749581]
[1767723704050,6.60892094,3217.0,3216.1,1.41749581]
[1767723704820,7.94177119,3217.0,3216.1,1.41749581]
[1767723707513,7.94177119,3217.0,3215.8,1.41749581]
[1767723707514,1.33285025,3216.9,3215.8,1.41749581]
[1767723707716,1.33285025,3216.9,3215.9,1.41749581]
[1767723707717,6.21735886,3216.8,3215.9,1.41749581]
[1767723707943,3.10867943,3216.8,3215.9,1.41749581]
[1767723708142,6.21735886,3216.8,3216.0,1.87020712]
[1767723709232,1.33285025,3216.7,3215.8,0.808]
[1767723709820,1.33285025,3216.5,3215.4,3.10997918]
[1767723710134,1.33285025,3216.5,3215.5,3.10986247]
[1767723710329,1.33285025,3216.5,3215.3,5.33561636]
[1767723710330,1.33285025,3216.5,3215.4,3.10999147]
[1767723710647,1.33285025,3216.5,3215.5,3.1099265]
[1767723710819,1.33285025,3216.5,3215.5,0.84455429]
[1767723711643,0.811,3216.4,3215.0,4.52788968]
[1767723711826,1.33285025,3216.1,3215.1,1.41749581]
[1767723712237,1.33285025,3216.1,3214.8,2.22549581]
[1767723712544,1.33285025,3216.1,3214.9,3.33301111]
[1767723712545,1.33285025,3216.0,3214.9,3.33301111]
[1767723712846,1.33285025,3216.0,3214.9,0.22254958]
[1767723713023,1.33285025,3216.0,3214.9,3.11051652]
[1767723713420,1.33285025,3216.0,3214.8,3.11056957]
[1767723713966,1.33285025,3215.8,3214.8,3.11056957]
[1767723716241,1.33285025,3215.8,3214.2,1.41749581]
[1767723716242,1.33285025,3215.6,3214.2,1.41749581]
[1767723716423,1.33285025,3215.4,3214.3,0.22254958]
[1767723717038,1.33285025,3215.4,3214.4,3.11091355]
[1767723717233,1.33285025,3215.4,3214.4,3.11098238]
[1767723717622,1.33285025,3215.4,3214.3,3.11102985]
[1767723717823,1.33285025,3215.4,3214.2,3.11116571]
[1767723718143,1.27178461,3215.0,3213.6,1.26786418]
[1767723718321,1.27178461,3214.8,3214.0,0.808]
[1767723720550,1.27178461,3214.8,3214.0,7.03069195]
[1767723721133,1.27178461,3214.8,3213.7,0.4379694]
[1767723721341,1.27178461,3214.7,3213.8,3.11152272]
[1767723722039,1.27178461,3214.7,3213.6,0.808]
[1767723722262,1.27178461,3214.7,3213.9,3.11141755]
[1767723722563,3.11080694,3214.6,3213.7,3.11164992]
[1767723722767,4.38253535,3214.7,3213.7,6.22332804]
[1767723722965,4.38253535,3214.7,3213.8,0.7031328]
[1767723723457,0.811,3215.3,3213.8,0.7031328]
[1767723723662,1.31895966,3215.1,3213.8,2.02280512]
[1767723724974,1.31895966,3214.9,3213.9,3.11148448]
[1767723725885,1.31895966,3214.9,3213.9,6.22296896]
[1767723726048,1.31895966,3214.9,3214.1,0.002]
[1767723727285,1.31895966,3214.7,3214.1,0.002]
[1767723729477,4.4297666,3214.6,3214.1,0.002]
[1767723729869,1.31895966,3214.6,3214.1,0.002]
[1767723730249,1.31895966,3214.6,3213.8,0.002]
[1767723730442,1.31895966,3214.4,3213.8,0.002]
[1767723731674,1.31895966,3214.3,3213.8,0.002]
[1767723733550,4.4301116,3214.3,3213.8,0.002]
[1767723734273,1.31895966,3214.3,3213.8,0.002]
[1767723737384,1.31895966,3215.5,3213.8,1.32167232]
[1767723737584,1.31895966,3215.3,3214.4,6.30957314]
[1767723737759,3.20314295,3216.0,3214.4,6.30957314]
[1767723737760,1.31895966,3215.6,3214.5,1.31967232]
[1767723738582,1.31895966,3215.6,3213.9,1.95082963]
[1767723738755,1.31895966,3215.6,3214.1,0.811]
[1767723739182,1.31895966,3215.4,3214.3,1.31967232]
[1767723739570,1.31895966,3215.4,3214.2,3.11119407]
[1767723739975,1.31895966,3215.4,3214.2,6.22238814]
[1767723740175,1.31895966,3215.4,3214.2,7.54206046]
[1767723740372,0.001,3215.9,3214.3,1.31967232]
[1767723740373,1.31895966,3215.6,3214.3,1.31967232]
[1767723740778,4.42880035,3215.6,3214.3,1.31967232]
[1767723741163,7.53864104,3215.6,3214.3,1.31967232]
[1767723741778,7.53864104,3215.6,3214.5,1.31967232]
[1767723742858,1.31895966,3215.5,3214.3,3.11105496]
[1767723743059,1.31895966,3215.4,3214.3,3.92005496]
[1767723743260,1.31895966,3215.4,3214.3,3.11105496]
[1767723743884,1.31895966,3215.2,3214.1,0.002]
[1767723744097,1.31895966,3215.2,3214.2,3.11118715]
[1767723744300,1.31895966,3215.0,3214.1,3.11326137]
[1767723744805,1.31895966,3215.0,3214.1,0.002]
[1767723745888,1.31895966,3214.8,3213.8,0.002]
[1767723746981,1.31895966,3214.8,3213.8,1.32167232]
[1767723747577,2.88388156,3215.1,3213.8,1.32167232]
[1767723747812,1.31895966,3215.0,3213.9,2.15507365]
[1767723748206,1.31895966,3214.9,3214.0,3.11138767]
[1767723750618,4.4294982,3214.9,3214.1,0.002]
[1767723751592,1.30619333,3214.8,3214.1,0.002]
[1767723752382,0.001,3215.2,3214.2,1.31365589]
[1767723752383,1.30619333,3215.1,3214.2,1.31365589]
[1767723752716,1.30619333,3215.1,3214.1,0.002]
[1767723755523,3.1104199,3215.0,3214.1,0.002]
[1767723755821,0.44166132,3214.9,3214.1,0.002]
[1767723756915,0.44166132,3214.9,3214.1,1.31565589]
[1767723757724,0.44166132,3214.9,3214.1,4.42691696]
[1767723759618,3.11036091,3215.1,3214.2,1.31365589]
[1767723760331,5.2284304,3215.2,3214.2,1.31365589]
[1767723760888,1.30619333,3215.1,3214.2,1.31365589]
[1767723762224,1.30619333,3215.1,3214.2,4.42481629]
[1767723762722,4.41654607,3215.1,3214.2,4.42481629]
[1767723763016,1.30619333,3215.1,3214.3,1.31365589]
[1767723763222,1.30619333,3214.9,3212.5,0.002]
[1767723763441,1.30619333,3214.9,3213.1,1.31365589]
[1767723763602,0.001,3214.8,3213.5,3.11181597]
[1767723763929,1.30619333,3214.6,3213.4,4.42556246]
[1767723764218,1.30619333,3214.6,3213.5,1.31365589]
[1767723764219,3.11100049,3214.4,3213.5,1.31365589]
[1767723764420,4.41781886,3214.8,3213.7,1.31365589]
[1767723764624,1.30719333,3214.8,3213.7,1.31365589]
[1767723764925,4.41782894,3214.8,3213.7,1.31365589]
[1767723765821,4.41782894,3214.8,3213.2,1.31365589]
[1767723765822,1.30619333,3214.7,3213.2,1.31365589]
[1767723766011,1.30619333,3214.5,3213.3,1.31365589]
[1767723766205,1.30619333,3214.4,3213.4,6.22393726]
[1767723766726,1.30619333,3214.4,3213.4,3.11196863]
[1767723767907,1.30619333,3214.4,3213.4,6.22393726]
[1767723768306,1.30619333,3214.4,3213.4,1.31365589]
[1767723768624,0.75284646,3214.6,3213.6,1.31365589]
[1767723769018,1.30619333,3214.5,3213.6,1.31365589]
[1767723769922,1.30619333,3214.5,3213.3,7.53778683]
[1767723770728,1.30619333,3214.3,3213.2,0.75381743]
[1767723771022,1.30619333,3214.3,3213.3,3.11204046]
[1767723771606,1.30619333,3214.3,3213.1,5.2348248]
[1767723771806,1.30619333,3214.3,3213.2,3.11209306]
[1767723772120,1.30619333,3214.3,3213.3,3.1120523]
[1767723772303,1.30619333,3214.3,3213.3,3.11205454]
[1767723772698,1.30619333,3214.1,3213.2,3.11212279]
[1767723773015,1.74793207,3214.0,3213.2,3.11212279]
[1767723773718,1.74793207,3214.0,3213.1,5.23486638]
[1767723774223,1.74793207,3214.0,3213.2,1.31365589]
[1767723774525,1.30619333,3214.0,3213.2,1.31365589]
[1767723774726,1.30619333,3214.0,3213.2,4.42572616]
[1767723775096,4.41758976,3214.0,3213.2,4.42572616]
[1767723775302,4.41758976,3214.0,3213.5,0.002]
[1767723776102,1.30619333,3213.9,3213.5,0.002]
[1767723776426,3.11139643,3214.0,3213.1,0.002]
[1767723776427,1.30619333,3213.7,3213.1,0.002]
[1767723776632,0.44175898,3213.8,3213.1,3.11419085]
[1767723777346,0.44175898,3213.8,3213.1,0.002]
[1767723777517,1.25578401,3213.7,3213.1,0.002]
[1767723778344,6.22322906,3213.8,3213.1,0.002]
[1767723778546,1.25578401,3213.6,3213.1,0.00010558]
[1767723779044,1.25578401,3213.6,3212.5,3.11482512]
[1767723779210,1.25578401,3213.5,3212.5,1.27424469]
[1767723780304,0.75578401,3213.5,3212.5,1.27424469]
[1767723780512,1.25578401,3213.3,3212.5,0.002]
[1767723781007,0.69793869,3213.4,3212.5,1.27424469]
[1767723781206,1.25578401,3214.2,3212.9,1.27224469]
[1767723781526,8.20544563,3214.4,3212.9,1.30336921]
[1767723781732,1.98344465,3214.4,3212.9,1.30336921]
[1767723781928,1.17144465,3214.7,3212.9,1.30336921]
[1767723782116,0.001,3214.8,3212.9,1.30336921]
[1767723782436,0.001,3215.2,3214.4,1.2179787]
[1767723782637,6.2195282,3215.7,3214.5,1.2179787]
[1767723782808,1.17144465,3215.6,3214.5,1.2179787]
[1767723783137,1.17144465,3215.6,3213.6,1.2179787]
[1767723783308,0.42812088,3215.5,3214.3,1.2179787]
[1767723783502,1.59956553,3215.5,3214.3,1.2179787]
[1767723785135,0.42812088,3215.5,3214.5,1.2179787]
[1767723785306,1.59956553,3215.5,3214.4,3.11100049]
[1767723785506,4.70951498,3215.5,3214.5,1.2179787]
[1767723785715,0.4709515,3215.4,3214.5,1.2179787]
[1767723785931,0.001,3215.9,3214.6,1.2179787]
[1767723786834,3.11055474,3215.9,3214.6,1.2179787]
[1767723787514,3.11055474,3215.9,3214.7,6.22142034]
[1767723787718,0.001,3215.2,3214.8,1.2179787]
[1767723789736,0.001,3215.2,3214.9,3.11051665]
[1767723790326,0.001,3215.2,3214.5,1.2179787]
[1767723790637,0.001,3215.2,3214.6,3.11079749]
[1767723791030,0.001,3215.2,3214.6,1.2179787]
[1767723791341,0.001,3215.2,3214.3,2.0269787]
[1767723791611,0.001,3215.2,3214.8,4.32859211]
[1767723791728,0.001,3215.2,3214.7,3.11061942]
[1767723791932,0.001,3215.2,3214.6,3.11080015]
[1767723792132,0.001,3215.2,3214.7,3.1106973]
[1767723793257,0.001,3215.2,3214.6,3.11077243]
[1767723793467,0.001,3215.2,3214.7,3.11066377]
[1767723793759,0.001,3215.2,3214.5,3.11088075]
[1767723793926,0.001,3215.2,3214.5,6.22178446]
[1767723794445,1.17244465,3215.9,3214.9,1.2179787]
[1767723795034,4.28200855,3215.9,3214.9,1.2179787]
[1767723795377,1.17144465,3215.8,3214.5,4.32885945]
[1767723795533,1.17144465,3215.8,3214.5,7.43976316]
[1767723795741,1.17144465,3215.8,3214.7,4.32868887]
[1767723795941,4.28110052,3215.8,3214.8,1.2179787]
[1767723796144,0.50931005,3215.7,3214.8,1.2179787]
[1767723796929,0.001,3215.9,3214.8,1.2179787]
[1767723797332,1.17244465,3215.9,3214.8,1.2179787]
[1767723797551,0.001,3215.9,3214.8,1.2179787]
[1767723798028,0.001,3215.9,3215.0,1.2179787]
[1767723798361,1.17244465,3215.9,3214.9,3.11051665]
[1767723798523,1.17244465,3215.9,3214.9,6.2210333]
[1767723799154,1.17244465,3215.9,3214.9,3.11051665]
[1767723800056,4.28204022,3215.9,3214.8,3.11054847]
[1767723800256,0.42820402,3215.8,3214.8,6.22116188]
[1767723800457,0.42820402,3215.8,3214.8,6.22316188]
[1767723800658,0.001,3215.5,3214.8,6.22316188]
[1767723801545,0.001,3215.5,3214.8,7.44114058]
[1767723801949,0.001,3215.5,3214.9,1.2179787]
[1767723802274,0.001,3215.5,3214.9,5.38367008]
[1767723802474,0.001,3215.5,3214.9,4.16569138]
[1767723802649,0.001,3215.5,3215.0,1.2179787]
[1767723804449,1.17244465,3215.5,3214.8,0.002]
[1767723804869,1.17244465,3215.5,3214.8,3.11260407]
[1767723805274,1.17244465,3215.5,3214.8,0.002]
[1767723805478,1.17244465,3215.5,3214.8,0.00099897]
[1767723805653,1.17244465,3215.5,3214.5,0.002]
[1767723805994,1.17144465,3215.3,3214.5,0.002]
[1767723806495,1.17144465,3215.3,3214.5,4.33085832]
[1767723806702,0.19834447,3215.4,3214.6,1.2179787]
[1767723807667,7.58244465,3215.9,3215.0,1.2179787]
[1767723807878,10.69200328,3215.9,3215.0,1.2179787]
[1767723808393,7.58244465,3215.9,3215.0,1.2179787]
[1767723808597,7.58244465,3215.9,3215.1,4.32830186]
[1767723808794,1.06919452,3215.8,3215.1,4.32830186]
[1767723809287,1.06919452,3215.8,3215.2,1.2179787]
[1767723809788,1.06919452,3215.8,3215.0,3.11037833]
[1767723810176,3.11056453,3215.9,3215.0,4.32835703]
[1767723810684,0.001,3215.9,3215.0,4.32835703]
[1767723811058,0.001,3215.9,3215.1,1.2179787]
[1767723812561,0.001,3215.9,3215.2,1.22917875]
[1767723813160,0.001,3215.6,3215.2,1.22917875]
[1767723813556,0.001,3215.6,3215.0,3.91934685]
[1767723813954,1.23007702,3215.6,3214.6,1.22917875]
[1767723814187,1.23007702,3215.6,3214.5,0.002]
[1767723814492,1.23007702,3215.6,3214.5,3.11287591]
[1767723814691,1.22907702,3215.4,3214.5,0.002]
[1767723814868,0.74489495,3215.3,3214.5,0.002]
[1767723815564,0.74489495,3215.3,3214.5,1.23117875]
[1767723817165,0.74489495,3215.3,3214.6,7.45079263]
[1767723817484,0.001,3215.6,3214.7,1.22917875]
[1767723818190,0.001,3215.6,3214.8,1.22917875]
[1767723819201,0.001,3215.6,3215.1,4.33950191]
[1767723819700,0.001,3215.6,3215.2,1.22917875]
[1767723819857,0.001,3215.9,3215.6,1.22917875]
[1767723820057,1.22907702,3216.6,3215.6,1.22917875]